Workbook

Sheet Vannasistabas remonta izmaksas
B1: Vannasistabas remonta izmaksu darblapa
B2: PIEZĪME. Tabulas kolonnās Starpība tiks uzrādīta vērtība, ja faktiskie izdevumi pārsniegs plānotos. Sarkani skaitļi parāda pārsniegumu (negatīvu vērtību), un melni skaitļi parāda ietaupījumu (pozitīvu vērtību).
E3: Detalizētas izmaksas (EUR) | H3: Kopējās izmaksas (EUR)
B4: Zona | C4: Preces | D4: Daudzums | E4: Plānotās izmaksas | F4: Faktiskās izmaksas | G4: Starpība | H4: Plānotās izmaksas | I4: Faktiskās izmaksas | J4: Starpība
B5: Vanna/duša | C5: Vanna, dzelzs, 1,50 m, standarta | D5: 1 | E5: 250.00 EUR | F5: =RANDBETWEEN(E5+2,E5+20) -> 253.00 EUR | G5: =IFERROR(Izmaksas[[#This Row],[Plānotās izmaksas]]-Izmaksas[[#This Row],[Faktiskās izmaksas]], "") -> -3.00 EUR | H5: =IFERROR(Izmaksas[[#This Row],[Daudzums]]*Izmaksas[[#This Row],[Plānotās izmaksas]], "") -> 250.00 EUR | I5: =IFERROR(Izmaksas[[#This Row],[Daudzums]]*Izmaksas[[#This Row],[Faktiskās izmaksas]], "") -> 253.00 EUR | J5: =IFERROR(Izmaksas[[#This Row],[Plānotās izmaksas ]]-Izmaksas[[#This Row],[Faktiskās izmaksas ]], "") -> -3.00 EUR
B6: Vanna/duša | C6: Dušas durtiņas, ar eņģēm, standarta | D6: 1 | E6: 200.00 EUR | F6: 208.00 EUR | G6: =IFERROR(Izmaksas[[#This Row],[Plānotās izmaksas]]-Izmaksas[[#This Row],[Faktiskās izmaksas]], "") -> -8.00 EUR | H6: =IFERROR(Izmaksas[[#This Row],[Daudzums]]*Izmaksas[[#This Row],[Plānotās izmaksas]], "") -> 200.00 EUR | I6: =IFERROR(Izmaksas[[#This Row],[Daudzums]]*Izmaksas[[#This Row],[Faktiskās izmaksas]], "") -> 208.00 EUR | J6: =IFERROR(Izmaksas[[#This Row],[Plānotās izmaksas ]]-Izmaksas[[#This Row],[Faktiskās izmaksas ]], "") -> -8.00 EUR
B7: Vanna/duša | C7: Dušas klausule, standarta | D7: 1 | E7: 50.00 EUR | F7: 70.00 EUR | G7: =IFERROR(Izmaksas[[#This Row],[Plānotās izmaksas]]-Izmaksas[[#This Row],[Faktiskās izmaksas]], "") -> -20.00 EUR | H7: =IFERROR(Izmaksas[[#This Row],[Daudzums]]*Izmaksas[[#This Row],[Plānotās izmaksas]], "") -> 50.00 EUR | I7: =IFERROR(Izmaksas[[#This Row],[Daudzums]]*Izmaksas[[#This Row],[Faktiskās izmaksas]], "") -> 70.00 EUR | J7: =IFERROR(Izmaksas[[#This Row],[Plānotās izmaksas ]]-Izmaksas[[#This Row],[Faktiskās izmaksas ]], "") -> -20.00 EUR
B8: Vanna/duša | C8: Vannas apkārtējā siena, standarta | D8: 1 | E8: 200.00 EUR | F8: 217.00 EUR | G8: =IFERROR(Izmaksas[[#This Row],[Plānotās izmaksas]]-Izmaksas[[#This Row],[Faktiskās izmaksas]], "") -> -17.00 EUR | H8: =IFERROR(Izmaksas[[#This Row],[Daudzums]]*Izmaksas[[#This Row],[Plānotās izmaksas]], "") -> 200.00 EUR | I8: =IFERROR(Izmaksas[[#This Row],[Daudzums]]*Izmaksas[[#This Row],[Faktiskās izmaksas]], "") -> 217.00 EUR | J8: =IFERROR(Izmaksas[[#This Row],[Plānotās izmaksas ]]-Izmaksas[[#This Row],[Faktiskās izmaksas ]], "") -> -17.00 EUR
B9: Skapīši | C9: Tualetes skapītis, 60 cm, deluxe | D9: 1 | E9: 200.00 EUR | F9: 219.00 EUR | G9: =IFERROR(Izmaksas[[#This Row],[Plānotās izmaksas]]-Izmaksas[[#This Row],[Faktiskās izmaksas]], "") -> -19.00 EUR | H9: =IFERROR(Izmaksas[[#This Row],[Daudzums]]*Izmaksas[[#This Row],[Plānotās izmaksas]], "") -> 200.00 EUR | I9: =IFERROR(Izmaksas[[#This Row],[Daudzums]]*Izmaksas[[#This Row],[Faktiskās izmaksas]], "") -> 219.00 EUR | J9: =IFERROR(Izmaksas[[#This Row],[Plānotās izmaksas ]]-Izmaksas[[#This Row],[Faktiskās izmaksas ]], "") -> -19.00 EUR
B10: Skapīši | C10: Moduļu skapīši, 75 cm, standarta | D10: 2 | E10: 100.00 EUR | F10: 111.00 EUR | G10: =IFERROR(Izmaksas[[#This Row],[Plānotās izmaksas]]-Izmaksas[[#This Row],[Faktiskās izmaksas]], "") -> -11.00 EUR | H10: =IFERROR(Izmaksas[[#This Row],[Daudzums]]*Izmaksas[[#This Row],[Plānotās izmaksas]], "") -> 200.00 EUR | I10: =IFERROR(Izmaksas[[#This Row],[Daudzums]]*Izmaksas[[#This Row],[Faktiskās izmaksas]], "") -> 222.00 EUR | J10: =IFERROR(Izmaksas[[#This Row],[Plānotās izmaksas ]]-Izmaksas[[#This Row],[Faktiskās izmaksas ]], "") -> -22.00 EUR
B11: Letes | C11: Keramikas flīzes, deluxe (skaits uz metru) | D11: 5 | E11: 22.50 EUR | F11: 27.00 EUR | G11: =IFERROR(Izmaksas[[#This Row],[Plānotās izmaksas]]-Izmaksas[[#This Row],[Faktiskās izmaksas]], "") -> -4.50 EUR | H11: =IFERROR(Izmaksas[[#This Row],[Daudzums]]*Izmaksas[[#This Row],[Plānotās izmaksas]], "") -> 112.50 EUR | I11: =IFERROR(Izmaksas[[#This Row],[Daudzums]]*Izmaksas[[#This Row],[Faktiskās izmaksas]], "") -> 135.00 EUR | J11: =IFERROR(Izmaksas[[#This Row],[Plānotās izmaksas ]]-Izmaksas[[#This Row],[Faktiskās izmaksas ]], "") -> -22.50 EUR
B12: Jaucējkrāni | C12: Jaucējkrāns, vanna, standarta | D12: 1 | E12: 90.00 EUR | F12: 99.00 EUR | G12: =IFERROR(Izmaksas[[#This Row],[Plānotās izmaksas]]-Izmaksas[[#This Row],[Faktiskās izmaksas]], "") -> -9.00 EUR | H12: =IFERROR(Izmaksas[[#This Row],[Daudzums]]*Izmaksas[[#This Row],[Plānotās izmaksas]], "") -> 90.00 EUR | I12: =IFERROR(Izmaksas[[#This Row],[Daudzums]]*Izmaksas[[#This Row],[Faktiskās izmaksas]], "") -> 99.00 EUR | J12: =IFERROR(Izmaksas[[#This Row],[Plānotās izmaksas ]]-Izmaksas[[#This Row],[Faktiskās izmaksas ]], "") -> -9.00 EUR
B13: Jaucējkrāni | C13: Dušas jaucējkrāns, viens rokturis, standarta | D13: 1 | E13: 115.00 EUR | F13: 127.00 EUR | G13: =IFERROR(Izmaksas[[#This Row],[Plānotās izmaksas]]-Izmaksas[[#This Row],[Faktiskās izmaksas]], "") -> -12.00 EUR | H13: =IFERROR(Izmaksas[[#This Row],[Daudzums]]*Izmaksas[[#This Row],[Plānotās izmaksas]], "") -> 115.00 EUR | I13: =IFERROR(Izmaksas[[#This Row],[Daudzums]]*Izmaksas[[#This Row],[Faktiskās izmaksas]], "") -> 127.00 EUR | J13: =IFERROR(Izmaksas[[#This Row],[Plānotās izmaksas ]]-Izmaksas[[#This Row],[Faktiskās izmaksas ]], "") -> -12.00 EUR
B14: Jaucējkrāni | C14: Izlietnes jaucējkrāns, standarta | D14: 1 | E14: 95.00 EUR | F14: 97.00 EUR | G14: =IFERROR(Izmaksas[[#This Row],[Plānotās izmaksas]]-Izmaksas[[#This Row],[Faktiskās izmaksas]], "") -> -2.00 EUR | H14: =IFERROR(Izmaksas[[#This Row],[Daudzums]]*Izmaksas[[#This Row],[Plānotās izmaksas]], "") -> 95.00 EUR | I14: =IFERROR(Izmaksas[[#This Row],[Daudzums]]*Izmaksas[[#This Row],[Faktiskās izmaksas]], "") -> 97.00 EUR | J14: =IFERROR(Izmaksas[[#This Row],[Plānotās izmaksas ]]-Izmaksas[[#This Row],[Faktiskās izmaksas ]], "") -> -2.00 EUR
B15: Grīda | C15: Keramikas flīzes, standarta (skaits uz kv. m) | D15: 35 | E15: 12.00 EUR | F15: 14.00 EUR | G15: =IFERROR(Izmaksas[[#This Row],[Plānotās izmaksas]]-Izmaksas[[#This Row],[Faktiskās izmaksas]], "") -> -2.00 EUR | H15: =IFERROR(Izmaksas[[#This Row],[Daudzums]]*Izmaksas[[#This Row],[Plānotās izmaksas]], "") -> 420.00 EUR | I15: =IFERROR(Izmaksas[[#This Row],[Daudzums]]*Izmaksas[[#This Row],[Faktiskās izmaksas]], "") -> 490.00 EUR | J15: =IFERROR(Izmaksas[[#This Row],[Plānotās izmaksas ]]-Izmaksas[[#This Row],[Faktiskās izmaksas ]], "") -> -70.00 EUR
B16: Piederumi | C16: Dvieļu turētājs, standarta | D16: 2 | E16: 15.00 EUR | F16: 26.00 EUR | G16: =IFERROR(Izmaksas[[#This Row],[Plānotās izmaksas]]-Izmaksas[[#This Row],[Faktiskās izmaksas]], "") -> -11.00 EUR | H16: =IFERROR(Izmaksas[[#This Row],[Daudzums]]*Izmaksas[[#This Row],[Plānotās izmaksas]], "") -> 30.00 EUR | I16: =IFERROR(Izmaksas[[#This Row],[Daudzums]]*Izmaksas[[#This Row],[Faktiskās izmaksas]], "") -> 52.00 EUR | J16: =IFERROR(Izmaksas[[#This Row],[Plānotās izmaksas ]]-Izmaksas[[#This Row],[Faktiskās izmaksas ]], "") -> -22.00 EUR
B17: Piederumi | C17: Tualetes papīra turētājs | D17: 1 | E17: 10.00 EUR | F17: 27.00 EUR | G17: =IFERROR(Izmaksas[[#This Row],[Plānotās izmaksas]]-Izmaksas[[#This Row],[Faktiskās izmaksas]], "") -> -17.00 EUR | H17: =IFERROR(Izmaksas[[#This Row],[Daudzums]]*Izmaksas[[#This Row],[Plānotās izmaksas]], "") -> 10.00 EUR | I17: =IFERROR(Izmaksas[[#This Row],[Daudzums]]*Izmaksas[[#This Row],[Faktiskās izmaksas]], "") -> 27.00 EUR | J17: =IFERROR(Izmaksas[[#This Row],[Plānotās izmaksas ]]-Izmaksas[[#This Row],[Faktiskās izmaksas ]], "") -> -17.00 EUR
B18: Apgaismojums | C18: Iebūvēts apgaismojums, standarta | D18: 4 | E18: 25.00 EUR | F18: 28.00 EUR | G18: =IFERROR(Izmaksas[[#This Row],[Plānotās izmaksas]]-Izmaksas[[#This Row],[Faktiskās izmaksas]], "") -> -3.00 EUR | H18: =IFERROR(Izmaksas[[#This Row],[Daudzums]]*Izmaksas[[#This Row],[Plānotās izmaksas]], "") -> 100.00 EUR | I18: =IFERROR(Izmaksas[[#This Row],[Daudzums]]*Izmaksas[[#This Row],[Faktiskās izmaksas]], "") -> 112.00 EUR | J18: =IFERROR(Izmaksas[[#This Row],[Plānotās izmaksas ]]-Izmaksas[[#This Row],[Faktiskās izmaksas ]], "") -> -12.00 EUR
B19: Izlietnes | C19: Klozetpods, standarta | D19: 2 | E19: 60.00 EUR | F19: 75.00 EUR | G19: =IFERROR(Izmaksas[[#This Row],[Plānotās izmaksas]]-Izmaksas[[#This Row],[Faktiskās izmaksas]], "") -> -15.00 EUR | H19: =IFERROR(Izmaksas[[#This Row],[Daudzums]]*Izmaksas[[#This Row],[Plānotās izmaksas]], "") -> 120.00 EUR | I19: =IFERROR(Izmaksas[[#This Row],[Daudzums]]*Izmaksas[[#This Row],[Faktiskās izmaksas]], "") -> 150.00 EUR | J19: =IFERROR(Izmaksas[[#This Row],[Plānotās izmaksas ]]-Izmaksas[[#This Row],[Faktiskās izmaksas ]], "") -> -30.00 EUR
B20: Citi | D20: 1 | E20: 20.00 EUR | F20: 38.00 EUR | G20: =IFERROR(Izmaksas[[#This Row],[Plānotās izmaksas]]-Izmaksas[[#This Row],[Faktiskās izmaksas]], "") -> -18.00 EUR | H20: =IFERROR(Izmaksas[[#This Row],[Daudzums]]*Izmaksas[[#This Row],[Plānotās izmaksas]], "") -> 20.00 EUR | I20: =IFERROR(Izmaksas[[#This Row],[Daudzums]]*Izmaksas[[#This Row],[Faktiskās izmaksas]], "") -> 38.00 EUR | J20: =IFERROR(Izmaksas[[#This Row],[Plānotās izmaksas ]]-Izmaksas[[#This Row],[Faktiskās izmaksas ]], "") -> -18.00 EUR
B21: Starpsumma | E21: =SUBTOTAL(109,Izmaksas[Plānotās izmaksas]) -> 1,464.50 EUR | F21: =SUBTOTAL(109,Izmaksas[Faktiskās izmaksas]) -> 1,636.00 EUR | G21: =SUBTOTAL(109,Izmaksas[Starpība]) -> -171.50 EUR | H21: =SUBTOTAL(109,Izmaksas[[Plānotās izmaksas ]]) -> 2,212.50 EUR | I21: =SUBTOTAL(109,Izmaksas[[Faktiskās izmaksas ]]) -> 2,516.00 EUR | J21: =SUBTOTAL(109,Izmaksas[[Starpība ]]) -> -303.50 EUR
B22: Neparedzētas izmaksas (pievienojiet aptuveni 30%) | E22: =IFERROR(Izmaksas[[#Totals],[Plānotās izmaksas]]*0.3, "") -> 439.35 EUR | H22: =IFERROR(Izmaksas[[#Totals],[Plānotās izmaksas ]]*0.3, "") -> 663.75 EUR
B23: Kopējās izmaksas | E23: =IFERROR(SUM(E21:E21), "") -> 1,464.50 EUR | H23: =IFERROR(SUM(Izmaksas[[#Totals],[Plānotās izmaksas ]],Pārsniegums), "") -> 2,876.25 EUR
